Cogmind - Beta 15 @@@ ROGUE MODE // 2025.09.01 @ 10:27:20 Player: beans Result: Destroyed by D-53 Grenadier with Mini Grenade Launcher Performance ------------- Evolutions (2) 1000 Regions Visited (4) 800 Robots Destroyed (45) 225 Value Destroyed (951) 951 Prototype IDs (5) 100 Alien Tech Used (0) 0 Bonus (668) 668 TOTAL SCORE: 3744 Bonus ------- High Alert Combat Kills 101 Follower Combat Kills 567 Cogmind --------- Core Integrity 0/550 Matter 290/300 Energy 51/100 System Corruption 5% Temperature Cool (0) Movement Core (150) Ox2 Location -8/Storage Parts ------- > --- POWER (1) -------- (None) > --- PROPULSION (3) --- (None) > --- UTILITY (5) ------ Cooling System Visual Processing Unit Improved Signal Interpreter Targeting Computer Experimental Targeting Computer > --- WEAPON (2) ------- Spread Laser Advanced Beam Rifle > --- INVENTORY (5) ---- Compact Matter Pod (150) Spread Laser Advanced Beam Cannon Grenade Launcher Peak State ------------ > --- POWER ------------ Improved Ion Engine > --- PROPULSION ------- Light Treads Light Treads > --- UTILITY ---------- Cooling System Visual Processing Unit Improved Signal Interpreter Targeting Computer Experimental Targeting Computer > --- WEAPON ----------- Advanced Beam Rifle Advanced Beam Rifle > --- INVENTORY -------- Compact Matter Pod Advanced Beam Cannon Light Assault Rifle Grenade Launcher Axe [Rating: 27] Favorites ----------- Power Improved Ion Engine Engine Improved Ion Engine Power Core Light Nuclear Core Propulsion Light Treads Treads Light Treads Hover Unit Hover Unit Flight Unit Improved Flight Unit Utility Visual Processing Unit Device Cooling System Storage Compact Matter Pod Processor Visual Processing Unit Weapon Assault Rifle Energy Gun Spread Laser Energy Cannon Advanced Beam Cannon Ballistic Gun Assault Rifle Launcher Grenade Launcher Slashing Weapon Axe Build | -11 -10 -9 -8 -8 ------- Run | Yrd Mat Mat Mat Sto Slots Evolved 4 | . . 2 2 . Power . | . . . . . Propulsion 1 | . . . 1 . Utility 3 | . . 2 1 . Weapon . | . . . . . Parts Attached 38 | 4 5 5 3 21 Power 3 | . 1 . . 2 Engine 2 | . 1 . . 1 Core 1 | . . . . 1 Reactor . | . . . . . Propulsion 12 | 2 . 4 . 6 Treads 4 | 2 . . . 2 Leg . | . . . . . Wheel . | . . . . . Hover 2 | . . 2 . . Flight 6 | . . 2 . 4 Utility 8 | . . 1 1 6 Device 3 | . . . . 3 Storage 1 | . . . 1 . Processor 4 | . . 1 . 3 Hackware . | . . . . . Protection . | . . . . . Artifact . | . . . . . Weapon 15 | 2 4 . 2 7 Energy Gun 7 | 2 . . . 5 Energy Cannon 1 | . . . . 1 Ballistic Gun 5 | . 3 . 2 . Ballistic Cannon . | . . . . . Launcher 1 | . 1 . . . Special Weapon . | . . . . . Impact Weapon . | . . . . . Slashing Weapon 1 | . . . . 1 Piercing Weapon . | . . . . . Special Melee Weapon . | . . . . . Unidentified Prototypes 3 | . . 1 . 2 Parts Lost 18 | . 1 2 3 12 Power 3 | . . . 1 2 Propulsion 8 | . . 2 . 6 Utility 1 | . . . . 1 Weapon 6 | . 1 . 2 3 Highest Loss Streak 8 | . 1 2 3 8 To Critical Strikes . | . . . . . Average Backups 3 | 1 2 3 4 4 Power . | . . . . . Propulsion . | . . . . . Utility . | . . . . . Weapon 3 | . 2 3 3 3 Tool/Special . | . . . . . Unused Backups 1 | 1 . . . . Power . | . . . . . Propulsion . | . . . . . Utility . | . . . . . Weapon 1 | 1 . . . . Tool/Special . | . . . . . Average Slot Usage (%) 69 | . 61 55 49 78 Engine 5 | . 4 11 6 4 Core 1 | . . . . 1 Treads 12 | . 28 9 . 11 Hover 1 | . . 7 . . Flight 5 | . . . 18 6 Device 4 | . . . . 7 Storage 1 | . . . . 2 Processor 18 | . . 5 9 28 Energy Gun 9 | . 12 6 6 9 Energy Cannon 1 | . . . . 2 Ballistic Gun 7 | . 14 11 8 4 Launcher 1 | . 1 4 . . Peak Build Rating 27 | 4 5 11 13 27 Average Rating 15 | 1 4 5 11 21 On Entrance 6 | . 4 5 11 13 Naked Turns . | . . . . . Heaviest Build 15 | 3 10 10 10 15 Greatest Support 40 | 40 40 40 10 40 Greatest Overweight (x) 2 | . . 2 . 1 Average Overweight (x) . | . . . . . Largest Inventory Capacity 5 | 5 5 5 5 5 Average Capacity 5 | 5 5 5 5 5 Most Carried 5 | 3 5 5 5 5 Average Carried 3 | 1 2 3 4 4 Final Capacity 5 | 5 5 5 5 5 Final Carried 4 | . 3 3 4 4 Class Distribution -------------------- 47% | Mutant 45% | Commander-Mutant 7% | Scavenger-Mutant Dominant Class ---------------- Mutant | -10/Materials Mutant | -9/Materials Mutant | -8/Materials Commander-Mutant | -8/Storage Resources | -11 -10 -9 -8 -8 ----------- Run | Yrd Mat Mat Mat Sto Matter Collected 1161 | 206 177 191 102 485 Remotely . | . . . . . Salvage Created 1500 | . 257 325 102 816 Parts 105 | . 13 19 10 63 Haulers Intercepted 5 | . . 1 . 4 Recyclers Shooed 3 | . . . 1 2 Parts Field Recycled . | . . . . . Retrieved Matter . | . . . . . Parts Self-Destructed . | . . . . . Prevented . | . . . . . Kills | -11 -10 -9 -8 -8 ------- Run | Yrd Mat Mat Mat Sto Combat Hostiles Destroyed 23 | . 8 3 2 10 Melee 1 | . . . . 1 Guns 18 | . 5 3 2 8 AOE 3 | . 3 . . . Classes Destroyed 11 | . 1 4 3 3 Worker 7 | . . 1 . 6 Builder 3 | . . . . 3 Hauler 5 | . . 1 . 4 Recycler 2 | . . 1 . 1 Mechanic 1 | . . . . 1 Operator 1 | . . . 1 . Watcher 3 | . . 2 . 1 Swarmer 4 | . . . . 4 Grunt 13 | . 8 3 . 2 Sentry 5 | . . . 1 4 Hunter 1 | . . . 1 . Best Kill Streak 5 | . 3 4 1 5 Combat Bots Only 4 | . 3 2 1 4 Max Kills in Single Turn 2 | . 2 1 1 2 Gunslinging 1 | . . . . 1 Exploded 2 | . 2 . . . Melee 1 | . . . . 1 Uniques/NPCs Destroyed . | . . . . . Combat | -11 -10 -9 -8 -8 -------- Run | Yrd Mat Mat Mat Sto Hostile Shots Fired 230 | . 53 20 44 113 Missed 87 | . 18 6 17 46 Hits 143 | . 35 14 27 67 Projectile 143 | . 35 14 27 67 AOE 9 | . . . . 9 Critical Strikes 3 | . . . . 3 Damage Taken 2262 | . 443 151 416 1252 Core 679 | . 68 46 174 391 Absorbed by Shields . | . . . . . Core Remaining (%) 86 | 100 72 88 . . Volleys Fired 136 | . 27 24 17 68 Largest 2 | . 2 2 2 2 Hottest 130 | . 90 70 75 130 Shots Fired 268 | . 53 47 32 136 Gun 255 | . 49 47 32 127 Cannon 9 | . . . . 9 Launcher 4 | . 4 . . . Special . | . . . . . Kinetic 127 | . 43 24 18 42 Thermal 137 | . 6 23 14 94 Explosive 4 | . 4 . . . Electromagnetic . | . . . . . Robot Hit Streak 13 | . 8 6 8 13 Robot Miss Streak 5 | . 4 2 5 3 Penetration Max . | . . . . . Secondary Targets 4 | . 1 . . 3 Max Gunslinging Chain 1 | . 1 . . 1 Shots Hit Robots 176 | . 34 26 21 95 Core Hits 96 | . 17 12 7 60 Critical Kills 1 | . . 1 . . Critical Parts Destroyed 1 | . . . . 1 Critical Strikes 10 | . 1 1 2 6 Burn 8 | . 1 . 2 5 Destroy 2 | . . 1 . 1 Melee Attacks 8 | . . . . 8 Impact . | . . . . . Slashing 8 | . . . . 8 Piercing . | . . . . . Sneak Attacks 1 | . . . . 1 Combat Hostiles . | . . . . . Follow-up Attacks . | . . . . . Damage Inflicted 2902 | . 611 351 265 1675 Guns 2291 | . 390 351 265 1285 Cannons 143 | . . . . 143 Explosions 221 | . 221 . . . Melee 247 | . . . . 247 Ramming . | . . . . . Kinetic 1025 | . 342 154 168 361 Thermal 1409 | . 48 197 97 1067 Explosive 221 | . 221 . . . Electromagnetic . | . . . . . Impact . | . . . . . Slashing 247 | . . . . 247 Piercing . | . . . . . Highest Corruption 5 | . . 1 . 5 Average Corruption 4 | . . 1 . 4 Corruption Purged . | . . . . . Corruption Blocked . | . . . . . Effects 26 | . . . . 26 Message Errors 6 | . . . . 6 Matter Fused 5 | . . . . 5 Heat Flow Errors 4 | . . . . 4 Energy Discharges 3 | . . . . 3 Parts Rejected 2 | . . . . 2 Data Loss (minor) 1 | . . . . 1 Data Loss (major) 1 | . . . . 1 Misfires 3 | . . . . 3 Alerts 1 | . . . . 1 Overload Shots . | . . . . . Overflow Damage . | . . . . . Projectiles . | . . . . . Explosions . | . . . . . Melee . | . . . . . Knockbacks . | . . . . . Impact . | . . . . . Kinetic . | . . . . . Secondary . | . . . . . Self-Inflicted Damage 15 | . 15 . . . Shots 3 | . 3 . . . Rammed . | . . . . . Targets Rammed . | . . . . . Kicked . | . . . . . Crushed . | . . . . . Highest Temperature 235 | . 51 136 79 235 Average Temperature 45 | . 13 42 25 83 Received Heat Transfer 825 | . 237 84 153 351 Siege Activations . | . . . . . Martial Activations . | . . . . . Shielding Activations . | . . . . . Robots Disrupted . | . . . . . Combat Hostiles . | . . . . . Robots Corrupted . | . . . . . Combat Hostiles . | . . . . . Parts Fried . | . . . . . Impact Corruptions . | . . . . . Robots Melted 1 | . . . . 1 Combat Hostiles 1 | . . . . 1 Parts Melted 8 | . . . 4 4 Heat Transferred 3645 | . 210 592 444 2399 Parts Sabotaged . | . . . . . Parts Stolen . | . . . . . Parts Stripped . | . . . . . Power Chain Reactions . | . . . . . Alert | -11 -10 -9 -8 -8 ------- Run | Yrd Mat Mat Mat Sto Maximum Alert Level 3 | . . . . 3 Low Security (%) 56 | 100 100 100 100 27 Level 1 1 | . . . . 2 Level 2 13 | . . . . 22 Level 3 28 | . . . . 48 Level 4 . | . . . . . Level 5 . | . . . . . High Security . | . . . . . Max Security . | . . . . . Peak Influence 874 | . 133 53 35 874 Initial 53 | . . 53 18 14 Average 341 | . 46 33 12 548 Influence Increases 1822 | . 219 121 95 1387 Destroy 0b10 Robot/C 840 | . 160 60 40 580 Destroy 0b10 Robot/NC 120 | . . 25 5 90 Destroy Leader 228 | . 30 6 20 172 Allied During Kill 422 | . . . . 422 Disable Machine 30 | . . . . 30 Destroy Structure 17 | . 14 . . 3 Partial Spotted 45 | . . . 30 15 Lose Combat Pursuer 120 | . 15 30 . 75 Influence Decreases 1066 | . 90 206 104 666 Entered New Map 123 | . . 76 26 21 Time Decay 603 | . 80 110 48 365 Lost Part 180 | . 10 20 30 120 Lost Ally 160 | . . . . 160 Squads Dispatched 8 | . 2 . 2 4 Investigation 3 | . 1 . 1 1 Extermination . | . . . . . Reinforcement 3 | . 1 . 1 1 Assault 1 | . . . . 1 Garrison 1 | . . . . 1 Intercept . | . . . . . Searches Triggered . | . . . . . Construction Impeded . | . . . . . Haulers Reinforced . | . . . . . Active Scanning Responses . | . . . . . Cargo Convoy Interrupts . | . . . . . Stealth | -11 -10 -9 -8 -8 --------- Run | Yrd Mat Mat Mat Sto Distress Signals 7 | . . 2 1 4 Communications Jammed . | . . . . . Distress Signals . | . . . . . Times Spotted 72 | . 9 6 17 40 Peak Tracking Total 15 | . 3 3 15 11 Tactical Retreats 6 | . 1 2 . 3 Traps | -11 -10 -9 -8 -8 ------- Run | Yrd Mat Mat Mat Sto Traps Triggered 6 | . 1 1 1 3 Indirectly . | . . . . . Trap Hack Attempts . | . . . . . Triggered . | . . . . . Disarmed . | . . . . . Reprogrammed . | . . . . . Reused . | . . . . . Traps Extracted . | . . . . . Installed . | . . . . . Triggered . | . . . . . Machines | -11 -10 -9 -8 -8 ---------- Run | Yrd Mat Mat Mat Sto Machines Disabled 2 | . . . . 2 Max in Single Turn 1 | . . . . 1 Garrison Access 1 | . . . . 1 Machines Repaired . | . . . . . Machines Dismantled . | . . . . . Machines Sabotaged . | . . . . . Overloaded Fab Kills . | . . . . . Hacking | -11 -10 -9 -8 -8 --------- Run | Yrd Mat Mat Mat Sto Machines Accessed 7 | . . . . 7 Terminals 6 | . . . . 6 Fabricators . | . . . . . Repair Stations . | . . . . . Recycling Units . | . . . . . Scanalyzers . | . . . . . Garrison Access 1 | . . . . 1 Total Hacks 10 | . . . . 10 Successful 4 | . . . . 4 Failed 6 | . . . . 6 Catastrophic 2 | . . . . 2 Database Lockouts . | . . . . . Manual 4 | . . . . 4 Terminals 9 | . . . . 9 Fabricators . | . . . . . Repair Stations . | . . . . . Recycling Units . | . . . . . Scanalyzers . | . . . . . Garrison Access 1 | . . . . 1 Terminal Hacks 3 | . . . . 3 Prototype ID Bank 1 | . . . . 1 Open Door 2 | . . . . 2 Fabricator Hacks . | . . . . . Repair Station Hacks . | . . . . . Recycling Unit Hacks . | . . . . . Scanalyzer . | . . . . . Garrison Access Hacks 1 | . . . . 1 Seal Access 1 | . . . . 1 Unauthorized Hacks . | . . . . . Terminals . | . . . . . Fabricators . | . . . . . Repair Stations . | . . . . . Recycling Units . | . . . . . Scanalyzers . | . . . . . Garrison Access . | . . . . . Data Cores Recovered . | . . . . . Used . | . . . . . Hacking Detections 3 | . . . . 3 Full Trace Events 1 | . . . . 1 Feedback Events . | . . . . . Feedback Blocked . | . . . . . Robot Schematics Acquired . | . . . . . Robots Built . | . . . . . Authchips . | . . . . . Time . | . . . . . Total Robot Build Rating . | . . . . . Part Schematics Acquired . | . . . . . Parts Built . | . . . . . Authchips . | . . . . . Time . | . . . . . Total Part Build Rating . | . . . . . Parts Repaired . | . . . . . Time . | . . . . . Parts Recycled . | . . . . . Recycled Matter . | . . . . . Retrieved Matter . | . . . . . Retrieved Components . | . . . . . Parts Scanalyzed . | . . . . . Part Schematics Acquired . | . . . . . Parts Damaged . | . . . . . Bothacking | -11 -10 -9 -8 -8 ------------ Run | Yrd Mat Mat Mat Sto Used RIF Installer . | . . . . . Robots Hacked . | . . . . . Non-combat . | . . . . . Combat . | . . . . . Robot Hacks Applied . | . . . . . Relay Couplers Released . | . . . . . Fabnet Peak Effective % . | . . . . . Robots Rewired . | . . . . . Allies Hacked . | . . . . . Hacks Repelled . | . . . . . Allies | -11 -10 -9 -8 -8 -------- Run | Yrd Mat Mat Mat Sto Total Allies 10 | . . . . 10 Largest Group 10 | . . . . 10 Highest-Rated Group 173 | . . . . 173 Highest-Rated Ally 29 | . . . . 29 Total Orders . | . . . . . Ally Attacks 153 | . . . . 153 Total Damage 1937 | . . . . 1937 Kills 23 | . . . . 23 Allies Corrupted . | . . . . . Allies Melted . | . . . . . Intel | -11 -10 -9 -8 -8 ------- Run | Yrd Mat Mat Mat Sto Active Infowar (turns) 1107 | . . 111 112 884 Optics 1107 | . . 111 112 884 Robot Analysis Total . | . . . . . Derelict Logs Recovered . | . . . . . Drone Launches . | . . . . . Drone Recoveries . | . . . . . Exploration | -11 -10 -9 -8 -8 ------------- Run | Yrd Mat Mat Mat Sto Turns Passed 1474 | 34 211 233 112 884 Spaces Moved 1011 | 46 75 118 150 622 Core 70 | 44 . 1 . 25 Treads 416 | 2 75 56 . 283 Legs . | . . . . . Wheels . | . . . . . Hover 54 | . . 54 . . Flight 471 | . . 7 150 314 Fastest Speed 29 | 50 160 37 37 29 Average Speed 91 | 54 160 125 37 93 Slowest Speed 160 | 160 160 160 37 160 Overloaded Moves . | . . . . . Propulsion Burnouts . | . . . . . Robots Hopped 6 | . . . 1 5 Potential Cave-ins . | . . . . . Cave-ins Triggered . | . . . . . Exploration Rate (%) 30 | 3 20 15 22 90 Regions Visited 4 Branch Regions 1 Pre-discovered Areas . | . . . . . Known Exits Taken . | . . . . . Unknown Exits Taken 4 | 1 1 1 1 . Scrap Searched . | . . . . . Spaces Dug 1 | . . . . 1 Terrain Destroyed 16 | . 15 . . 1 Melee 1 | . . . . 1 Projectile . | . . . . . AOE 15 | . 15 . . . Terrain Rammed . | . . . . . Walls Destroyed . | . . . . . Machines Disabled . | . . . . . Actions | -11 -10 -9 -8 -8 --------- Run | Yrd Mat Mat Mat Sto Total 1268 | 55 112 155 174 772 Wait 34 | . 1 . . 33 Move 995 | 45 74 117 147 612 Hop 6 | . . . 1 5 Pick Up 32 | 5 5 5 4 13 Fast Attach 8 | . . . 1 7 Attach 25 | 4 2 5 3 11 Detach 2 | . . . . 2 Swap 13 | . 3 2 . 8 Drop 9 | 1 . 2 1 5 Fire 136 | . 27 24 17 68 Melee 8 | . . . . 8 Ram . | . . . . . Kick . | . . . . . Crush . | . . . . . Escape Stasis . | . . . . . Rewire . | . . . . . Trap . | . . . . . Miscellaneous . | . . . . . Route ------- -11/Scrapyard -10/Materials -9/Materials -8/Materials -8/Storage (discovered 1 exit: [*Fac]) History --------- Turn | Location | Event 15 | -11/Scrapyard | Discovered new exit (range 15) 35 | -11/Scrapyard | Entered Materials 106 | -10/Materials | Discovered new exit (range 12) 246 | -10/Materials | Entered another Materials area 246 | -9/Materials | Evolved 2 slots: Utility x2 314 | -9/Materials | Build established: Mutant 396 | -9/Materials | Discovered new exit (range 18) 479 | -9/Materials | Entered another Materials area 479 | -8/Materials | Evolved 2 slots: Propulsion x1, Utility x1 577 | -8/Materials | Discovered new exit (range 14) 591 | -8/Materials | Entered Storage 602 | -8/Storage | Lost 3 parts (1p2w) 706 | -8/Storage | Found Prototype Processor 707 | -8/Storage | Identified Exp. Targeting Computer 804 | -8/Storage | Core integrity fell below 50% 823 | -8/Storage | Assisted by bots powering up and referring to "LRC-V3" 872 | -8/Storage | Core integrity fell below 20% 888 | -8/Storage | Lost 8 parts (1p4n1u2w) 912 | -8/Storage | Garrison activated, responded to threat 1122 | -8/Storage | Build established: Commander-Mutant 1277 | -8/Storage | Discovered new exit (range 17) 1391 | -8/Storage | First assault squad dispatched 1475 | -8/Storage | Destroyed by D-53 Grenadier with Mini Grenade Launcher Last Messages --------------- K-01 Serf collects debris. R-06 Scavenger destroyed. K-01 Serf cleans the Terminal. Trooper 3g destroyed. B-36 Bruiser destroyed. K-01 Serf collects debris. Soldier 3a destroyed. Trooper 3b destroyed. Critical hit (Burn: +37). K-01 Serf collects debris. G-47 Trooper destroyed. Adv. Beam Rifle destroyed. K-01 Serf destroyed. R-06 Scavenger collects Sml. Storage Unit. Imp. Ion Engine destroyed. The unstable cave ceiling collapses. K-01 Serf collects debris. Trooper 3c destroyed. The unstable cave ceiling collapses. Lgt. Treads destroyed. Map ----- +----------------------------------------------------+ | # +=![#?????????????????????????? | | ???######/######?????????????????????? | | ???# ! % #?????????????????????? | | ???# ##????????????????????? | | ???# #??????#######???????? | | ???# " " = ##??????# #???????? | | ???# "R" = #???????# #???????? | | ???# """ = =#???????#T #???????? | | ???# #???????##= ##???????? | | ???########+#############+######?????? | | ??????????# =%!%=% [ * #?????? | | ??????????# ![ = = #?????? | | ??????????# % *[ % #?????? | | ??????????# % ########+##+######?????? | | ??????????#% #???????? ?????????? | | ??????????#k #??????# "" ???????? | | ??????????# #??????# "Y !#??????? | | ??????????# ##?????# "" ! [#??????? | | ??######### T#?????# [%#??????? | | ??#!!!! # ##?????# """ #?????? | | ??# + r###????# """ ##?????? | | ??#!!! # ##???# """ #??????? | | ??######T# = ##??# #??????? | | ?????#### #???#########??????? | | ?##### ## #??????????????????? | | # T !@ #??????????????????? | | # ####?????????####### | | # """"" ## ????????? * | | # """"" = ! ### """??????# | | # """"" #==[ ##?# "!!"??????# | | # #%!=###??# [!"""????# """ | | # #%%*#????# """!["?#??# """ | | ###########d%i##???# ""]!" #??# [/""" | | # # % #???# " " #??#! """ | | # """ #d Tg ##### #??# """ | | # "G !+ ""l / #??# | | # """ =# #########+#########+### | | # # k % *[% | | # """ !! ########### %== | | # """ !! #?????????# %![[! | | # """ !! #????????##+###+############# | | # != #????????# =%=* ##????? | | #######%##????????# """ !""[% #????? | | ??????###?????????# """ """ [ ##????? | | ??????????????????# """ """ #?????? | | ??????????????????# #?????? | | ??????????????????##############?????? | | | | | | | +----------------------------------------------------+ Best States ------------- Heat Dissipation 53 Energy Generation 14 Energy Capacity 265 Matter Stores 305 Matter Capacity 450 Sight Range 18 Terrain Scan Density 10 Evasion (%) 64 Targeting Accuracy 17 Recoil Reduction 2 Item Schematics ----------------- None Robot Schematics ------------------ None Fabricated ------------ Nothing Repaired ---------- Nothing Alien Tech Used ----------------- None Achievements -------------- None Challenges ------------ None Game ------ Seed FocalTimingMesh Manual? 0 Play Time 00:16:41 Cumulative 118.6 hours Start 2025.08.31 @ 13:15:28 End 2025.09.01 @ 10:27:20 Sessions 1 Manual Loads 0 Difficulty Rogue Special Mode None Game No. 430 Rogue 430 Adventurer 0 Explorer 0 Win Type - Total 0 Types 0/0/0/0/0/0/0/0/0/0 Lore% 46 Gallery% 44 Achievement% 31 Wizard Run 0 Options --------- Layout 2 ASCII 0 Keyboard 0 Movement Mouse Keybinds 0 Fullscreen 2 Font 24/Smallcaps Map View 50x44 Zoom Use 0% Tactical HUD 0 Map Filters NONE Filters NONE Steam 1 RUN: 475e1d80-3ff2-481c-94a4-7a81b7a57a7d